bitfinex-derivatives/quotes_SOLF0:USTF0_20241120
["timestamp","ask_amount","ask_price","bid_price","bid_amount"]
[1732076009092,6.17391528,232.43,232.4,10.66820029]
[1732076009297,3.7601,232.61,232.41,2.52]
[1732076009499,3.7601,232.61,232.47,10.66820029]
[1732076009696,3.7601,232.61,232.48,2.52]
[1732076009898,2.1475,232.56,232.48,2.52]
[1732076010501,3.7601,232.61,232.48,2.52]
[1732076010798,10.66820029,232.59,232.44,10.66820029]
[1732076011004,10.66820029,232.59,232.45,2.52]
[1732076011200,2.148,232.51,232.45,2.52]
[1732076012199,2.1479,232.52,232.45,2.52]
[1732076013004,12.91,232.78,232.48,10.66820029]
[1732076013206,3.8813,232.66,232.51,10.66820029]
[1732076013402,6.02975405,232.66,232.52,2.52]
[1732076013621,2.1469,232.63,232.52,2.52]
[1732076014201,2.1471,232.61,232.52,2.52]
[1732076014414,10.66820029,232.64,232.52,2.52]
[1732076014610,3.8813,232.66,232.52,2.52]
[1732076015004,3.8813,232.66,232.53,2.52]
[1732076015710,17.03270293,232.63,232.53,2.52]
[1732076015911,2.1477,232.54,232.52,2.52]
[1732076016112,17.03270293,232.63,232.52,2.52]
[1732076016313,3.8813,232.66,232.52,2.52]
[1732076016513,2.1469,232.63,232.52,2.52]
[1732076016810,3.8813,232.66,232.52,2.52]
[1732076017053,2.1469,232.62,232.55,2.1475]
[1732076017210,3.8813,232.66,232.52,19.55270293]
[1732076018214,2.1467,232.65,232.57,2.1474]
[1732076018406,2.1467,232.65,232.58,2.52]
[1732076019219,2.1467,232.65,232.58,4.6673]
[1732076020222,2.1468,232.63,232.58,2.52]
[1732076020447,2.1468,232.63,232.56,2.1474]
[1732076020448,2.1468,232.63,232.59,2.58]
[1732076021714,3.8813,232.66,232.59,2.58]
[1732076021715,2.1467,232.65,232.59,2.58]
[1732076022113,2.1467,232.64,232.59,2.58]
[1732076022511,3.8813,232.66,232.59,2.58]
[1732076023214,2.1466,232.65,232.59,2.58]
[1732076024013,2.1468,232.64,232.59,2.58]
[1732076027921,2.1469,232.63,232.59,2.58]
[1732076032216,2.5984,232.66,232.59,2.58]
[1732076032421,2.147,232.61,232.59,2.58]
[1732076036918,2.147,232.61,232.6,2.56]
[1732076038625,2.147,232.61,232.55,10.64159205]
[1732076038827,2.1475,232.56,232.49,10.64159205]
[1732076039029,10.64159205,232.63,232.5,2.56]
[1732076039837,2.1474,232.57,232.52,2.1478]
[1732076041224,2.1474,232.57,232.45,2.5594]
[1732076041225,10.64159205,232.6,232.46,10.64159205]
[1732076041430,2.1478,232.53,232.48,2.1482]
[1732076041630,2.1478,232.53,232.47,2.56]
[1732076041631,10.64159205,232.6,232.47,2.56]
[1732076041827,2.1479,232.52,232.47,4.7083]
[1732076042934,2.1475,232.56,232.47,2.56]
[1732076043136,1.2005,232.59,232.47,2.56]
[1732076043636,2.1479,232.52,232.47,2.1483]
[1732076043839,1.2005,232.59,232.48,2.56]
[1732076044136,2.148,232.51,232.48,2.56]
[1732076044341,1.2005,232.59,232.45,10.64159205]
[1732076044532,1.2005,232.59,232.46,2.56]
[1732076045626,2.1478,232.52,232.46,2.56]
[1732076046439,2.1478,232.52,232.47,2.1483]
[1732076046633,2.1478,232.52,232.46,2.56]
[1732076047030,178.00832784,232.68,232.51,10.64159205]
[1732076047339,2.6124,232.72,232.62,10.64159205]
[1732076047528,2.6124,232.72,232.63,2.58]
[1732076048230,2.6124,232.72,232.63,2.1468]
[1732076048231,2.1461,232.71,232.63,2.1468]
[1732076048541,10.64159205,232.7,232.63,2.56]
[1732076049834,2.1467,232.65,232.63,2.56]
[1732076051330,10.64159205,232.7,232.63,2.56]
[1732076051534,2.1465,232.67,232.63,2.56]
[1732076051740,10.64159205,232.7,232.63,2.56]
[1732076052143,2.1467,232.65,232.63,2.56]
[1732076052634,10.64159205,232.7,232.57,10.64159205]
[1732076052831,10.36313026,232.69,232.58,2.44]
[1732076053028,10.36313026,232.69,232.58,4.5872]
[1732076053852,2.6124,232.72,232.6,2.1471]
[1732076054037,10.36224867,232.71,232.6,2.1471]
[1732076054237,2.6124,232.72,232.58,2.44]
[1732076054432,2.6124,232.72,232.6,10.64159205]
[1732076055034,2.1463,232.69,232.6,10.64159205]
[1732076055428,2.6124,232.72,232.6,10.64159205]
[1732076055637,2.6124,232.72,232.64,2.1467]
[1732076055638,2.1462,232.71,232.64,2.1467]
[1732076055838,2.1462,232.71,232.65,2.44]
[1732076057232,2.1462,232.71,232.65,4.5866]
[1732076057439,2.146,232.73,232.65,2.44]
[1732076057635,12.50250768,232.73,232.65,2.44]
[1732076057841,2.146,232.73,232.65,2.44]
[1732076058038,2.1458,232.75,232.68,2.1463]
[1732076058441,2.1458,232.75,232.65,2.44]
[1732076058442,10.35907257,232.78,232.66,10.64159205]
[1732076058838,2.1456,232.76,232.7,2.1462]
[1732076059037,10.35907257,232.78,232.71,2.44]
[1732076059249,10.35907257,232.78,232.72,2.44]
[1732076059452,1.2465,232.79,232.72,2.44]
[1732076059453,10.35907257,232.77,232.72,2.44]
[1732076059646,1.2465,232.79,232.72,2.44]
[1732076060350,2.1455,232.77,232.72,2.44]
[1732076062046,12.4922384,232.78,232.72,2.44]
[1732076062362,2.79788,232.85,232.72,13.08159205]
[1732076062548,10.33862278,232.84,232.73,2.1458]
[1732076063740,2.1453,232.79,232.72,13.08159205]
[1732076064140,2.1453,232.79,232.72,2.44]
[1732076064340,2.1457,232.76,232.69,12.78779205]
[1732076064640,20.98021483,232.82,232.73,2.44]
[1732076064839,10.33862278,232.81,232.73,2.44]
[1732076065442,2.1454,232.79,232.73,2.44]
[1732076065640,2.79788,232.85,232.73,2.44]
[1732076065843,20.9656406,232.84,232.73,2.44]
[1732076066045,2.1455,232.77,232.73,2.44]
[1732076067148,2.1454,232.79,232.73,2.44]
[1732076068046,2.1452,232.81,232.73,2.44]
[1732076069055,2.79788,232.85,232.73,2.44]
[1732076069648,10.30836929,232.84,232.73,4.5858]
[1732076069954,20.94996134,232.84,232.73,2.44]
[1732076070250,10.30836929,232.83,232.73,2.44]
[1732076070442,2.1455,232.77,232.73,2.44]
[1732076072563,2.1454,232.79,232.73,2.44]
[1732076072949,1.51108,232.85,232.73,2.44]
[1732076072950,1.51108,232.85,232.74,10.64159205]
[1732076074248,1.51108,232.85,232.76,2.1456]
[1732076074249,2.1451,232.82,232.76,2.1456]
[1732076074451,1.51108,232.85,232.74,10.64159205]
[1732076074857,2.1451,232.82,232.76,2.1456]
[1732076077253,1.51108,232.85,232.76,2.1456]
[1732076077557,1.51108,232.85,232.35,133.92413108]
[1732076077558,2.1455,232.77,232.72,2.146]
[1732076077857,2.1451,232.82,232.73,4.5859]
[1732076078054,12.15267205,232.85,232.73,4.5859]
[1732076079250,2.1454,232.79,232.73,2.44]
[1732076079454,2.1454,232.79,232.74,2.1458]
[1732076081060,2.1455,232.78,232.73,4.5859]
[1732076081966,10.64159205,232.82,232.74,2.44]
[1732076082349,2.1454,232.79,232.74,2.44]
[1732076082551,1.2846,232.81,232.74,2.44]
[1732076083957,1.2846,232.81,232.67,10.64159205]
[1732076084262,10.64159205,232.79,232.68,2.44]
[1732076084557,10.64159205,232.79,232.69,2.44]
[1732076085260,2.1461,232.71,232.69,2.44]
[1732076085458,2.1461,232.71,232.66,2.1465]
[1732076085661,2.1461,232.71,232.67,2.44]
[1732076086660,2.1461,232.71,232.64,10.64159205]
[1732076086661,2.1461,232.71,232.68,2.44]
[1732076088755,10.30163919,232.76,232.68,2.44]
[1732076088956,2.146,232.72,232.68,2.44]
[1732076089354,20.94963684,232.76,232.6,10.64159205]
[1732076089555,11.52894479,232.75,232.63,2.44]
[1732076089768,11.52894479,232.75,232.63,4.5868]
[1732076090464,2.1462,232.7,232.64,2.1467]
[1732076091256,10.30804479,232.74,232.64,2.1467]
[1732076091473,1.2209,232.75,232.64,2.1467]
[1732076091763,40.28161962,232.76,232.64,2.1467]
[1732076092063,10.30804479,232.75,232.63,2.44]
[1732076092761,6.80705468,232.7,232.62,30.94]
[1732076092962,6.80705468,232.7,232.63,2.44]
[1732076093463,6.80705468,232.68,232.63,2.44]
[1732076094168,2.1467,232.65,232.63,2.44]
[1732076094360,6.80705468,232.68,232.63,2.44]
[1732076096766,2.1467,232.64,232.6,6.80705468]
[1732076096955,6.80705468,232.68,232.61,2.44]
[1732076097909,6.80705468,232.68,232.62,2.44]
[1732076099260,2.1467,232.64,232.62,2.44]
[1732076099766,2.1467,232.64,232.63,2.44]
[1732076101292,6.80705468,232.66,232.48,30.92]
[1732076101483,3.6609,232.76,232.55,2.44]
[1732076101484,6.80705468,232.64,232.55,2.44]
[1732076101664,6.80705468,232.64,232.56,6.80705468]
[1732076101865,6.80705468,232.62,232.48,30.92]
[1732076102065,178.00832784,232.74,232.56,6.80705468]
[1732076102366,6.80705468,232.62,232.57,2.44]
[1732076103185,2.1471,232.6,232.57,2.44]
[1732076103471,6.80705468,232.62,232.57,2.44]
[1732076104263,2.1471,232.6,232.57,2.44]
[1732076104463,6.80705468,232.66,232.57,9.24705468]
[1732076104964,2.147,232.61,232.57,9.24705468]
[1732076105171,6.80705468,232.64,232.57,9.24705468]
[1732076105570,6.80705468,232.62,232.48,30.92]
[1732076105766,1.2636,232.63,232.57,6.80705468]
[1732076106075,2.1467,232.65,232.59,6.80705468]
[1732076106385,2.1467,232.65,232.6,2.44]
[1732076106580,6.80705468,232.67,232.6,2.44]
[1732076106784,2.1468,232.64,232.6,2.44]
[1732076107385,2.1468,232.63,232.6,2.44]
[1732076107575,1.2636,232.73,232.6,2.44]
[1732076107783,6.80705468,232.67,232.6,2.44]
[1732076108375,2.1467,232.65,232.6,2.44]
[1732076108579,6.80705468,232.67,232.6,2.44]
[1732076108777,6.80705468,232.65,232.6,2.44]
[1732076109817,6.80705468,232.61,232.57,2.44]
[1732076109993,6.80705468,232.63,232.57,2.44]
[1732076110385,2.1471,232.6,232.57,2.44]
[1732076110579,1.2636,232.73,232.57,2.44]
[1732076110884,6.80705468,232.63,232.57,2.44]
[1732076111279,2.1463,232.69,232.57,2.44]
[1732076111581,6.80705468,232.61,232.57,2.44]
[1732076111789,1.2636,232.73,232.57,2.44]
[1732076111790,6.80705468,232.59,232.57,2.44]
[1732076112377,2.1474,232.57,232.52,2.1478]
[1732076112586,2.1474,232.57,232.48,30.92]
[1732076112587,6.80705468,232.57,232.53,2.44]
[1732076112886,6.80705468,232.57,232.54,2.44]
[1732076113083,2.1476,232.55,232.52,2.44]
[1732076113283,6.80705468,232.55,232.53,2.44]
[1732076113479,6.80705468,232.55,232.51,2.44]
[1732076113888,2.1476,232.54,232.5,2.44]
[1732076117287,2.148,232.5,232.44,2.1485]
[1732076117491,6.80705468,232.49,232.45,2.44]
[1732076117686,6.80705468,232.47,232.45,2.44]
[1732076118492,2.1483,232.48,232.45,2.44]
[1732076118994,6.80705468,232.49,232.45,2.44]
[1732076119296,2.4584,232.53,232.46,8.95545468]
[1732076119628,2.1479,232.52,232.46,6.80705468]
[1732076120495,6.80705468,232.5,232.45,2.44]
[1732076120692,6.80705468,232.48,232.42,6.80705468]
[1732076120890,2.4584,232.53,232.43,2.44]
[1732076120891,2.1485,232.45,232.43,2.44]
[1732076121300,6.80705468,232.44,232.41,27.31478012]
[1732076121496,6.80705468,232.42,232.41,27.31478012]
[1732076121686,6.80705468,232.42,232.41,24.87478012]
[1732076122086,6.80705468,232.42,232.31,2.44]
[1732076122295,6.80705468,232.33,232.31,2.44]
[1732076122616,2.44,232.44,232.31,2.44]
[1732076122888,2.1495,232.34,232.31,2.44]
[1732076122993,6.80705468,232.35,232.31,2.44]
[1732076123295,1.0,232.43,232.31,2.44]
[1732076123591,2.1491,232.39,232.33,6.80705468]
[1732076123792,1.0,232.43,232.33,6.80705468]
[1732076123997,6.80705468,232.42,232.35,6.80705468]
[1732076124591,7.80705468,232.43,232.35,6.80705468]
[1732076124793,1.0,232.43,232.32,13.04880595]
[1732076125096,3.1487,232.43,232.35,2.1494]
[1732076125292,2.1487,232.43,232.35,2.1494]
[1732076125489,10.66180595,232.47,232.32,13.04880595]
[1732076126089,2.1488,232.42,232.33,2.1496]
[1732076128088,2.1488,232.42,232.32,13.04880595]
[1732076128089,11.93590595,232.47,232.32,13.04880595]
[1732076128291,2.1486,232.44,232.36,2.1492]
[1732076128496,2.1486,232.44,232.37,2.44]
[1732076129295,11.93590595,232.47,232.37,2.44]
[1732076130200,2.1487,232.43,232.37,2.44]
[1732076130408,11.93590595,232.47,232.37,2.44]
[1732076130898,2.1487,232.43,232.37,2.44]
[1732076132094,11.93590595,232.47,232.37,2.44]
[1732076132803,1.2741,232.47,232.37,2.44]
[1732076133002,3.4225,232.47,232.39,2.1489]
[1732076133696,2.1479,232.51,232.43,2.1486]
[1732076133898,10.66180595,232.56,232.44,2.44]
[1732076134097,10.66180595,232.56,232.45,2.44]
[1732076134295,2.1478,232.52,232.45,4.5884]
[1732076134903,2.1479,232.51,232.45,2.44]
[1732076135404,10.66180595,232.53,232.45,2.44]
[1732076136404,2.1481,232.5,232.45,2.44]
[1732076137800,10.66180595,232.53,232.45,2.44]
[1732076138104,10.66180595,232.56,232.45,2.44]
[1732076139398,2.1479,232.52,232.45,4.5885]
[1732076140197,10.66180595,232.56,232.47,2.1483]
[1732076140198,2.1477,232.54,232.47,2.1483]
[1732076140397,10.66180595,232.59,232.46,2.44]
[1732076142301,2.1476,232.55,232.47,2.1482]
[1732076142511,10.66180595,232.59,232.46,2.44]
[1732076144311,2.1475,232.56,232.46,2.44]
[1732076144907,2.1475,232.56,232.49,2.1481]
[1732076145304,1.224,232.6,232.43,1.2369]
[1732076145305,10.66180595,232.53,232.43,1.2369]
[1732076145615,10.66180595,232.56,232.44,2.42]
[1732076146307,10.66180595,232.59,232.45,10.66180595]
[1732076147304,1.224,232.6,232.45,10.66180595]
[1732076147504,11.88580595,232.6,232.45,10.66180595]
[1732076147907,2.1475,232.56,232.48,2.1481]
[1732076148636,8.96311526,232.56,232.49,6.81561526]
[1732076148859,8.96311526,232.56,232.5,2.42]
[1732076149202,2.1474,232.58,232.51,2.1479]
[1732076149510,6.81561526,232.64,232.56,6.81561526]
[1732076149708,6.81561526,232.66,232.59,6.81561526]
[1732076149908,6.81561526,232.66,232.6,2.42]
[1732076151311,2.1467,232.65,232.6,2.42]
[1732076151511,1.2806,232.72,232.61,6.81561526]
[1732076151810,6.81561526,232.69,232.61,6.81561526]
[1732076152207,2.1464,232.68,232.61,8.96261526]
[1732076152417,2.1464,232.68,232.61,6.81561526]
[1732076152637,1.2806,232.72,232.6,13.05658331]
[1732076154208,1.2806,232.72,232.62,2.1469]
[1732076154209,2.1463,232.69,232.62,2.1469]
[1732076154609,1.2806,232.72,232.62,2.1469]
[1732076156013,10.63658331,232.74,232.6,2.42]
[1732076156508,2.1461,232.71,232.6,2.42]
[1732076156908,10.63658331,232.74,232.6,2.42]
[1732076156909,10.63658331,232.74,232.65,2.1466]
[1732076157217,10.63658331,232.74,232.66,2.42]
[1732076157419,10.63658331,232.74,232.67,2.42]
[1732076157611,2.1463,232.69,232.67,2.42]
[1732076158328,2.1467,232.65,232.54,11.86718331]
[1732076158625,10.63658331,232.68,232.55,2.42]
[1732076158838,10.63658331,232.68,232.56,2.1474]
[1732076159390,2.1468,232.63,232.56,2.1474]
[1732076159443,12.77840295,232.65,232.57,2.42]
[1732076159624,10.63658331,232.65,232.57,2.42]
[1732076159819,2.1471,232.6,232.57,2.42]
[1732076160118,12.81115755,232.65,232.57,2.42]
[1732076160512,2.1472,232.59,232.57,2.42]
[1732076160715,2.1472,232.59,232.54,1.2306]
[1732076160921,10.63658331,232.61,232.55,2.42]
[1732076160922,2.1474,232.57,232.55,2.42]
[1732076161522,10.63658331,232.58,232.46,2.4584]
[1732076161819,10.63658331,232.55,232.47,2.42]
[1732076162015,10.63658331,232.52,232.47,2.42]
[1732076162208,2.1484,232.47,232.42,2.42]
[1732076162616,10.63658331,232.49,232.36,10.63658331]
[1732076162816,2.1486,232.44,232.37,2.42]
[1732076163011,2.1486,232.44,232.33,3.8852]
[1732076163012,2.1486,232.44,232.33,14.52178331]
[1732076163216,2.1486,232.44,232.34,2.42]
[1732076163620,2.1485,232.46,232.36,2.1493]
[1732076163928,10.63658331,232.49,232.36,2.1493]
[1732076164320,2.1486,232.44,232.34,2.42]
[1732076164516,10.63658331,232.46,232.34,2.1494]
[1732076164811,10.63658331,232.46,232.35,2.42]
[1732076165216,2.1488,232.42,232.35,2.42]
[1732076165814,10.63658331,232.46,232.35,2.42]
[1732076165815,2.1489,232.41,232.35,2.42]
[1732076166312,2.149,232.4,232.35,2.42]
[1732076166818,2.1488,232.42,232.35,2.42]
[1732076167015,10.63658331,232.46,232.35,2.42]
[1732076167412,2.1488,232.42,232.35,4.5694]
[1732076167719,10.63658331,232.49,232.35,2.42]
[1732076168320,2.1486,232.44,232.36,2.1492]
[1732076169320,2.1487,232.43,232.35,4.5694]
[1732076170322,2.1487,232.43,232.35,2.42]
[1732076170522,2.1487,232.43,232.36,2.1493]
[1732076170718,2.15398835,232.45,232.35,2.42]
[1732076172025,2.1487,232.43,232.35,2.42]
[1732076172216,10.63658331,232.46,232.35,2.42]
[1732076173018,2.1487,232.43,232.36,2.1493]
[1732076173621,10.63658331,232.46,232.35,2.42]
[1732076173823,2.1488,232.42,232.35,2.42]
[1732076174420,2.1486,232.45,232.35,2.42]
[1732076174621,10.63658331,232.49,232.35,2.42]
[1732076174826,10.63658331,232.52,232.36,10.63658331]
[1732076175323,10.63658331,232.52,232.39,10.63658331]
[1732076175732,2.1482,232.48,232.41,2.1488]
[1732076176029,10.63658331,232.52,232.42,2.42]
[1732076176332,2.1486,232.44,232.42,2.42]
[1732076177132,2.1487,232.43,232.4,2.42]
[1732076178831,2.1484,232.46,232.4,2.42]
[1732076179033,10.63658331,232.49,232.4,2.42]
[1732076180428,10.63658331,232.52,232.4,2.42]
[1732076181137,2.1484,232.46,232.4,2.42]
[1732076181436,10.63658331,232.49,232.4,2.42]
[1732076181636,2.1485,232.45,232.4,2.42]
[1732076181826,10.63658331,232.49,232.4,2.42]
[1732076182438,10.63658331,232.52,232.4,2.42]
[1732076183230,2.1482,232.48,232.41,2.1488]
[1732076183431,10.63658331,232.52,232.41,2.1488]
[1732076183630,0.6486,232.55,232.4,2.42]
[1732076183829,2.1483,232.48,232.41,2.1488]
[1732076184236,10.63658331,232.51,232.4,2.42]
[1732076184634,10.63658331,232.54,232.41,10.63658331]
[1732076184936,1.0,232.56,232.44,10.63658331]
[1732076185234,10.63658331,232.62,232.48,10.63658331]
[1732076185435,10.63658331,232.62,232.49,2.42]
[1732076185731,2.1472,232.59,232.51,2.1479]
[1732076186008,10.63658331,232.62,232.51,2.1479]
[1732076186133,10.63658331,232.62,232.49,2.42]
[1732076186453,10.63658331,232.56,232.5,2.42]
[1732076186638,10.63658331,232.56,232.51,2.42]
[1732076186832,10.63658331,232.59,232.51,2.42]
[1732076187640,2.1476,232.55,232.51,2.42]
[1732076187827,10.63658331,232.59,232.51,2.42]
[1732076188436,2.1477,232.54,232.51,2.42]
[1732076188736,2.1479,232.52,232.47,2.42]
[1732076188932,10.63658331,232.53,232.47,2.42]
[1732076189431,2.1481,232.49,232.47,2.42]
[1732076189838,10.63658331,232.5,232.38,2.5252]
[1732076190138,10.63658331,232.5,232.39,2.42]
[1732076191233,2.1482,232.48,232.4,2.1489]
[1732076191436,10.63658331,232.5,232.4,2.1489]
[1732076192339,2.1483,232.47,232.4,2.1489]
[1732076193030,2.1484,232.46,232.4,2.1489]
[1732076195885,2.1485,232.45,232.4,2.1489]
[1732076196436,2.1484,232.46,232.4,2.1489]
[1732076197239,2.1485,232.45,232.4,2.1489]
[1732076198043,2.1485,232.45,232.39,4.569]
[1732076198233,2.1488,232.42,232.38,2.5252]
[1732076198433,2.1488,232.42,232.39,2.42]
[1732076198635,10.63658331,232.5,232.39,2.42]
[1732076200340,2.1485,232.46,232.4,2.1489]
[1732076202145,10.63658331,232.5,232.4,2.1489]
[1732076202341,2.1485,232.45,232.4,2.1489]
[1732076203852,2.1488,232.42,232.39,2.42]
[1732076204251,10.63658331,232.46,232.39,2.42]
[1732076204450,2.1489,232.41,232.39,2.42]
[1732076204650,2.1489,232.41,232.4,2.42]
[1732076206148,2.1487,232.43,232.4,2.42]
[1732076206357,10.63658331,232.49,232.4,2.42]
[1732076206552,10.37807189,232.48,232.4,2.42]
[1732076208054,2.1484,232.46,232.4,2.42]
[1732076208255,10.37807189,232.48,232.4,2.42]
[1732076208762,2.1487,232.43,232.4,2.42]
[1732076209155,10.37807189,232.48,232.4,2.42]
[1732076209360,2.1486,232.45,232.4,2.42]
[1732076209560,10.37807189,232.48,232.4,2.42]
[1732076211261,2.1487,232.44,232.4,2.42]
[1732076211691,2.1487,232.44,232.38,2.1491]
[1732076211861,2.1487,232.44,232.39,2.42]
[1732076212459,10.63658331,232.46,232.39,2.42]
[1732076212661,10.37807189,232.45,232.39,2.42]
[1732076212866,10.63658331,232.43,232.39,2.42]
[1732076213364,2.149,232.39,232.3,2.4279]
[1732076213564,2.149,232.39,232.31,2.42]
[1732076213759,12.76243088,232.43,232.3,2.4279]
[1732076213963,2.1492,232.37,232.31,2.42]
[1732076214960,2.1491,232.39,232.31,2.42]
[1732076216059,2.1491,232.39,232.34,2.1495]
[1732076218374,10.63658331,232.43,232.35,2.1494]
[1732076219172,10.63658331,232.43,232.34,2.1495]
[1732076220177,10.63658331,232.43,232.35,2.1494]
[1732076221372,2.149,232.4,232.35,2.1494]
[1732076222177,2.1493,232.37,232.32,2.1496]
[1732076222375,12.82271215,232.43,232.3,2.4279]
[1732076222580,1.2807,232.42,232.31,2.42]
[1732076222775,1.2807,232.42,232.27,24.88707243]
[1732076222978,10.63658331,232.37,232.27,2.42]
[1732076223819,10.63658331,232.34,232.28,2.42]
[1732076224183,2.1499,232.3,232.28,2.42]
[1732076224982,10.63658331,232.31,232.21,2.6048]
[1732076225180,10.63658331,232.31,232.24,2.42]
[1732076226279,2.1501,232.28,232.24,2.42]
[1732076226478,10.63658331,232.31,232.24,2.42]
[1732076227289,2.1501,232.28,232.24,2.42]
[1732076227684,10.63658331,232.31,232.24,2.42]
[1732076227887,2.1502,232.27,232.21,2.1507]
[1732076228091,2.1502,232.27,232.16,10.63658331]
[1732076228092,10.63658331,232.28,232.22,2.42]
[1732076228295,10.63658331,232.28,232.23,2.42]
[1732076228495,10.63658331,232.28,232.21,2.42]
[1732076228692,10.63658331,232.25,232.2,2.42]
[1732076229094,2.1507,232.21,232.13,1.1898]
[1732076229291,2.1507,232.21,232.17,2.42]
[1732076229892,10.63658331,232.22,232.16,2.42]
[1732076230289,2.1509,232.19,232.16,2.42]
[1732076230598,10.63658331,232.22,232.13,2.42]
[1732076231201,2.1508,232.2,232.13,4.5714]
[1732076231411,12.84190787,232.28,232.14,10.63658331]
[1732076231697,12.84190787,232.28,232.14,11.84158331]
[1732076233100,11.91218331,232.3,232.14,11.84158331]
[1732076233595,1.2756,232.3,232.17,10.63658331]
[1732076234192,10.63658331,232.33,232.17,10.63658331]
[1732076234799,2.15,232.29,232.23,2.1505]
[1732076235003,2.15,232.29,232.24,2.42]
[1732076236696,2.1503,232.26,232.24,2.42]
[1732076237103,10.63658331,232.27,232.2,2.42]
[1732076237297,2.1503,232.26,232.2,2.42]
[1732076237501,10.63658331,232.27,232.2,2.42]
[1732076238306,10.63658331,232.28,232.2,2.42]
[1732076239502,2.1504,232.25,232.2,2.42]
[1732076239750,10.63658331,232.28,232.2,2.42]
[1732076240195,15.4516,232.39,232.2,2.42]
[1732076240196,2.1499,232.3,232.2,2.42]
[1732076240397,10.63658331,232.31,232.2,2.42]
[1732076241207,2.15,232.29,232.23,2.1505]
[1732076241405,10.63658331,232.31,232.2,2.42]
[1732076241906,2.15,232.29,232.23,2.1505]
[1732076242308,1.2901,232.39,232.22,10.63658331]
[1732076242511,1.2901,232.39,232.25,10.63658331]
[1732076242820,1.2901,232.39,232.26,2.42]
[1732076243046,2.1495,232.34,232.27,2.1501]
[1732076243213,10.63658331,232.34,232.26,2.42]
[1732076243411,10.63658331,232.37,232.26,2.42]
[1732076245709,10.63658331,232.37,232.26,4.5702]
[1732076246221,10.63658331,232.37,232.27,2.1501]
[1732076246413,10.63658331,232.37,232.26,2.42]
[1732076246815,2.1496,232.33,232.26,4.5702]
[1732076247210,2.1496,232.33,232.26,2.42]
[1732076247606,10.63658331,232.37,232.26,2.42]
[1732076248513,2.1493,232.36,232.26,2.42]
[1732076249014,11.95508331,232.43,232.28,10.63658331]
[1732076249517,10.63658331,232.43,232.28,10.63658331]
[1732076249817,10.63658331,232.46,232.31,10.63658331]
[1732076250108,10.63658331,232.46,232.32,2.42]
[1732076250307,2.1485,232.45,232.32,2.42]
[1732076250516,10.63658331,232.49,232.34,10.63658331]
[1732076250710,10.63658331,232.52,232.37,10.63658331]
[1732076250923,10.63658331,232.52,232.44,2.1485]
[1732076251243,10.63658331,232.52,232.38,4.9092]
[1732076251244,10.63658331,232.52,232.45,2.42]
[1732076251517,2.1482,232.48,232.45,2.42]
[1732076251711,10.63658331,232.49,232.45,2.42]
[1732076252127,2.1483,232.47,232.45,2.42]
[1732076252818,10.63658331,232.46,232.41,2.42]
[1732076253137,1.2919,232.54,232.41,2.42]
[1732076253138,10.63658331,232.52,232.41,2.42]
[1732076253364,2.148,232.51,232.41,2.42]
[1732076253526,1.2919,232.54,232.41,2.42]
[1732076253914,2.1478,232.53,232.41,2.42]
[1732076254115,1.2919,232.54,232.41,2.42]
[1732076254324,10.63658331,232.52,232.41,2.42]
[1732076255324,2.148,232.5,232.44,2.1485]
[1732076255659,10.63658331,232.49,232.41,2.42]
[1732076256521,2.1485,232.45,232.41,2.42]